bitfinex/quotes_SOLUSD_20251201
["timestamp","ask_amount","ask_price","bid_price","bid_amount"]
[1764621215546,150.0,124.43,124.42,0.1]
[1764621215720,192.02616688,124.43,124.42,0.1]
[1764621216423,200.06281399,124.43,124.42,0.1]
[1764621219317,192.02616688,124.43,124.42,0.1]
[1764621219524,200.06281399,124.43,124.42,0.1]
[1764621220046,192.2176176,124.43,124.42,0.1]
[1764621220226,200.06281399,124.43,124.42,0.1]
[1764621220546,195.44999545,124.43,124.42,0.1]
[1764621223345,75.0,124.4,124.39,0.1]
[1764621223519,96.10448434,124.4,124.39,0.1]
[1764621224946,104.14306954,124.4,124.39,0.1]
[1764621226651,75.0,124.42,124.39,0.1]
[1764621226946,12.15237785,124.41,124.39,0.1]
[1764621229547,87.18448434,124.4,124.39,0.1]
[1764621229740,3.23237785,124.4,124.39,0.1]
[1764621230056,3.23237785,124.43,124.39,0.1]
[1764621230257,158.80994492,124.45,124.39,0.1]
[1764621230258,12.15237785,124.44,124.39,0.1]
[1764621231249,12.15237785,124.44,124.39,28.23731006]
[1764621231432,8.92,124.44,124.39,31.46968791]
[1764621231955,12.15237785,124.44,124.39,28.23731006]
[1764621232332,16.77130208,124.44,124.39,28.23731006]
[1764621233162,8.92,124.44,124.39,36.08861214]
[1764621234060,16.77130208,124.44,124.39,28.23731006]
[1764621234563,8.92,124.44,124.39,36.08861214]
[1764621237243,91.9563908,124.44,124.39,0.1]
[1764621237571,75.14216157,124.46,124.39,32.29935906]
[1764621237735,7.85130208,124.44,124.39,24.44805698]
[1764621238239,7.85130208,124.44,124.39,44.5461356]
[1764621241256,8.03588492,124.45,124.39,44.5461356]
[1764621241571,7.85130208,124.43,124.39,28.2372716]
[1764621241732,16.77130208,124.43,124.39,28.2372716]
[1764621242133,7.85130208,124.41,124.39,0.1]
[1764621242366,16.77130208,124.4,124.39,0.1]
[1764621242747,100.72340857,124.4,124.39,0.1]
[1764621243131,16.77130208,124.4,124.39,0.1]
[1764621243332,24.80988728,124.4,124.39,0.1]
[1764621243732,108.76199377,124.4,124.39,0.1]
[1764621244455,8.92,124.4,124.39,0.1]
[1764621246035,8.92,124.42,124.39,0.1]
[1764621246336,16.77130208,124.42,124.39,0.1]
[1764621246542,7.85130208,124.41,124.39,0.1]
[1764621246756,7.85130208,124.4,124.39,0.1]
[1764621247662,16.80340857,124.4,124.39,0.1]
[1764621248333,16.99069169,124.4,124.39,0.1]
[1764621248539,24.84199377,124.4,124.39,0.1]
[1764621248749,15.8894609,124.41,124.39,0.1]
[1764621249544,7.85130208,124.41,124.39,0.1]
[1764621249846,16.77130208,124.41,124.39,0.1]
[1764621250358,8.92,124.41,124.39,0.1]
[1764621250660,16.77130208,124.43,124.39,0.1]
[1764621250845,24.80803828,124.43,124.39,0.1]
[1764621251965,8.92,124.43,124.39,0.1]
[1764621252139,8.92,124.43,124.39,7.95130208]
[1764621252337,8.92,124.43,124.39,0.1]
[1764621253152,3.2304231,124.42,124.39,0.1]
[1764621253939,20.18713256,124.43,124.39,0.1]
[1764621254160,8.92,124.43,124.39,0.1]
[1764621256075,12.1504231,124.43,124.39,0.1]
[1764621256652,166.9864958,124.47,124.39,3.3304231]
[1764621256857,8.92,124.46,124.4,3.2304231]
[1764621257157,3.2304231,124.44,124.39,9.02]
[1764621257360,3.2304231,124.42,124.39,0.1]
[1764621257561,3.2304231,124.43,124.39,0.1]
[1764621258249,83.92,124.42,124.39,0.1]
[1764621258570,3.2304231,124.4,124.39,0.1]
[1764621259572,11.2690083,124.4,124.39,0.1]
[1764621259777,3.2304231,124.4,124.39,0.1]
[1764621260567,14.00382131,124.4,124.39,0.1]
[1764621261851,22.04240651,124.4,124.39,0.1]
[1764621262184,13.09030002,124.4,124.39,0.1]
[1764621262358,16.9585852,124.4,124.39,0.1]
[1764621262558,22.01030002,124.4,124.39,0.1]
[1764621267471,30.96240651,124.4,124.39,0.1]
[1764621267779,22.01030002,124.4,124.39,0.1]
[1764621269488,17.19531154,124.48,124.42,16.308864]
[1764621269698,17.19531154,124.48,124.42,21.36057882]
[1764621269888,13.97171482,124.48,124.43,5.05171482]
[1764621270590,83.03222087,124.5,124.45,5.05171482]
[1764621270591,5.05171482,124.5,124.45,5.05171482]
[1764621270885,8.94,124.5,124.46,5.05171482]
[1764621271185,8.94,124.5,124.47,5.05171482]
[1764621271391,8.94,124.5,124.48,8.03341902]
[1764621271697,21.36057882,124.53,124.48,8.03341902]
[1764621271878,38.33090603,124.53,124.48,13.08513384]
[1764621272206,5.05171482,124.52,124.47,13.08557675]
[1764621272372,14.04440737,124.51,124.47,8.03386193]
[1764621272572,14.04440737,124.52,124.47,8.03386193]
[1764621272884,30.35327137,124.52,124.47,8.03386193]
[1764621273073,14.04440737,124.5,124.44,8.80994492]
[1764621273280,14.04440737,124.47,124.41,24.34674191]
[1764621273465,25.248864,124.49,124.43,14.04440737]
[1764621273670,16.308864,124.49,124.45,14.04440737]
[1764621274190,16.308864,124.49,124.44,14.04440737]
[1764621274779,38.38620065,124.49,124.44,14.04440737]
[1764621275395,14.04440737,124.48,124.42,30.35327137]
[1764621275573,22.98440737,124.47,124.43,8.03664711]
[1764621275973,8.94,124.47,124.43,8.03664711]
[1764621276178,8.94,124.47,124.43,22.08105448]
[1764621276483,8.94,124.47,124.43,42.17267225]
[1764621277097,22.98440737,124.47,124.43,8.03664711]
[1764621277294,22.98440737,124.47,124.42,8.03710013]
[1764621277678,22.98440737,124.47,124.42,22.0815075]
[1764621277881,22.98440737,124.47,124.42,42.17474009]
[1764621279105,8.94,124.47,124.43,14.04440737]
[1764621279807,8.94,124.47,124.44,8.03600128]
[1764621281713,8.94,124.47,124.43,14.04440737]
[1764621285708,8.94,124.47,124.44,8.03600128]
[1764621285905,20.07923877,124.51,124.45,14.04440737]
[1764621285906,14.04440737,124.51,124.45,14.04440737]
[1764621286111,14.04440737,124.49,124.44,51.11041186]
[1764621286606,14.04440737,124.5,124.44,51.11041186]
[1764621288404,14.04440737,124.49,124.44,51.11041186]
[1764621288987,14.04440737,124.49,124.44,42.17041186]
[1764621289184,14.04440737,124.48,124.44,28.12600449]
[1764621289613,22.98440737,124.48,124.44,28.12600449]
[1764621290290,8.94,124.48,124.44,34.13441058]
[1764621290999,22.98440737,124.48,124.44,20.09000321]
[1764621291396,8.94,124.48,124.44,34.13441058]
[1764621292411,8.94,124.48,124.44,42.17041186]
[1764621294516,8.94,124.48,124.44,33.16964156]
[1764621294723,22.01709469,124.48,124.43,13.08028418]
[1764621295121,13.98363707,124.48,124.43,33.17190195]
[1764621295315,8.94,124.48,124.44,5.04363707]
[1764621295827,13.98363707,124.48,124.43,33.17190195]
[1764621296727,22.01711841,124.48,124.43,33.17190195]
[1764621297230,22.01711841,124.48,124.43,8.03664711]
[1764621297412,22.01711841,124.48,124.43,33.17190195]
[1764621298917,21.99711841,124.48,124.43,33.17190195]
[1764621299418,8.92,124.47,124.43,33.17190195]
[1764621300395,28.11394328,124.5,124.44,5.04363707]
[1764621300599,5.04363707,124.49,124.44,5.04363707]
[1764621300827,5.04363707,124.49,124.43,5.04363707]
[1764621301033,5.04363707,124.49,124.44,5.04363707]
[1764621301708,37.03394328,124.5,124.45,5.04363707]
[1764621301904,16.95261591,124.5,124.46,5.04363707]
[1764621302110,21.99625298,124.5,124.45,5.04363707]
[1764621302310,16.95261591,124.5,124.46,5.04363707]
[1764621302517,21.99625298,124.5,124.46,8.03470994]
[1764621303129,5.04363707,124.49,124.46,8.03470994]
[1764621303333,5.04363707,124.47,124.43,8.03664711]
[1764621304131,8.95210649,124.49,124.43,8.03664711]
[1764621304328,5.04363707,124.48,124.43,13.08028418]
[1764621304536,8.03341902,124.48,124.43,13.08028418]
[1764621305037,8.92,124.47,124.43,13.08028418]
[1764621305240,108.15648889,124.5,124.44,5.04363707]
[1764621305409,8.92,124.49,124.44,5.04363707]
[1764621305611,8.92,124.49,124.45,5.04363707]
[1764621306143,8.92,124.49,124.44,5.04363707]
[1764621306536,8.92,124.49,124.45,8.03535556]
[1764621307635,16.308864,124.51,124.46,5.04363707]
[1764621307838,8.92,124.53,124.49,5.04363707]
[1764621308142,8.92,124.53,124.48,5.04363707]
[1764621308451,8.92,124.53,124.49,8.03277371]
[1764621308739,5.04363707,124.52,124.49,8.03277371]
[1764621308930,5.04363707,124.53,124.49,8.03277371]
[1764621309147,8.92,124.52,124.49,8.03277371]
[1764621310351,8.92,124.52,124.48,13.07677901]
[1764621310516,8.92,124.52,124.48,33.16032656]
[1764621311057,8.92,124.52,124.48,8.03314194]
[1764621311222,13.96363707,124.52,124.48,8.03314194]
[1764621311423,5.04363707,124.51,124.47,8.03374822]
[1764621312856,8.92,124.52,124.47,33.16254637]
[1764621313537,16.95094051,124.52,124.47,33.16254637]
[1764621313739,21.99457758,124.52,124.47,33.16254637]
[1764621313936,5.04363707,124.51,124.47,8.03374822]
[1764621314237,21.99457758,124.52,124.47,8.03374822]
[1764621314431,21.99457758,124.52,124.47,28.1189093]
[1764621315926,21.99457758,124.52,124.47,25.12879815]
[1764621316641,8.92,124.52,124.47,25.12879815]
[1764621316819,8.92,124.52,124.49,5.04363707]
[1764621317342,17.14923071,124.55,124.5,5.04363707]
[1764621317720,17.14923071,124.55,124.51,5.04363707]
[1764621317721,9.12,124.55,124.51,5.04363707]
[1764621317920,9.12,124.55,124.52,8.03083841]
[1764621318438,22.19254359,124.55,124.5,5.04363707]
[1764621318748,5.04363707,124.54,124.49,13.07641078]
[1764621318949,17.14890652,124.55,124.49,13.07641078]
[1764621318950,22.19254359,124.55,124.49,13.07641078]
[1764621319945,22.19254359,124.55,124.5,5.04363707]
[1764621320429,20.37356271,124.55,124.5,11.25632796]
[1764621320623,3.22465619,124.54,124.5,8.03167177]
[1764621321239,20.37356271,124.55,124.5,11.25632796]
[1764621322859,9.12,124.55,124.5,11.25632796]
[1764621323143,9.12,124.55,124.52,3.22465619]
[1764621323334,9.12,124.55,124.51,3.22465619]
[1764621323845,17.14909859,124.55,124.51,3.22465619]
[1764621324044,20.37375478,124.55,124.5,31.33664924]
[1764621324744,20.37375478,124.55,124.5,11.25632796]
[1764621325046,11.25429324,124.54,124.5,8.03167177]
[1764621325231,8.02963705,124.54,124.5,8.03167177]
[1764621326252,8.02963705,124.54,124.5,11.25632796]
[1764621326551,9.12,124.55,124.51,3.22465619]
[1764621326852,9.12,124.55,124.52,3.22465619]
[1764621327041,9.12,124.55,124.51,3.22465619]
[1764621327946,20.3740796,124.55,124.5,31.33664924]
[1764621328247,20.3740796,124.55,124.5,28.11199305]
[1764621328947,20.3740796,124.55,124.5,31.33664924]
[1764621329150,11.4540796,124.55,124.5,31.33664924]
[1764621329341,8.92,124.54,124.5,31.33664924]
[1764621329730,20.1746579,124.54,124.5,8.03167177]
[1764621330336,12.14465619,124.54,124.5,8.03167177]
[1764621331438,20.17424223,124.54,124.5,8.03167177]
[1764621332357,16.94958604,124.54,124.5,3.22465619]
[1764621332652,16.94958604,124.54,124.49,11.2574299]
[1764621332859,0.2,124.55,124.52,3.22465619]
[1764621333434,0.2,124.55,124.51,3.22465619]
[1764621333944,0.2,124.55,124.52,3.22465619]
[1764621334336,0.2,124.55,124.53,8.03019352]
[1764621334537,0.2,124.55,124.53,11.25484971]
[1764621335154,0.2,124.55,124.54,3.22465619]
[1764621336356,0.2,124.55,124.54,11.25420492]
[1764621338976,0.2,124.57,124.54,40.28018325]
[1764621339148,0.2,124.57,124.56,3.22465619]
[1764621339567,0.2,124.57,124.56,15.36931238]
[1764621339941,0.2,124.57,124.56,16.308864]
[1764621340146,0.2,124.57,124.54,16.308864]
[1764621340147,0.2,124.57,124.54,3.22465619]
[1764621341174,0.2,124.57,124.55,11.25356024]
[1764621341879,0.2,124.57,124.56,3.22465619]
[1764621342345,0.2,124.57,124.56,11.25291566]
[1764621344470,0.2,124.57,124.56,8.02825947]
[1764621347655,0.2,124.57,124.56,11.25291566]
[1764621348168,0.2,124.57,124.56,8.02825947]
[1764621348365,0.2,124.57,124.55,20.07226013]
[1764621348564,0.2,124.57,124.55,23.29691632]
[1764621349256,0.2,124.57,124.55,31.32582037]
[1764621349769,0.2,124.57,124.56,3.22465619]
[1764621350877,0.2,124.57,124.55,20.07226013]
[1764621351064,0.2,124.57,124.56,3.22465619]
[1764621352372,0.2,124.57,124.56,11.25291566]
[1764621352572,0.2,124.57,124.56,24.15154042]
[1764621352972,0.2,124.57,124.56,11.25291566]
[1764621353281,0.2,124.57,124.53,16.45102557]
[1764621353455,0.2,124.57,124.54,8.02954873]
[1764621354278,8.22763534,124.57,124.52,28.10771769]
[1764621354483,11.45229153,124.57,124.52,31.33237388]
[1764621356593,11.45229153,124.57,124.52,11.2554946]
[1764621358483,3.22465619,124.56,124.52,8.03083841]
[1764621358787,11.45229153,124.57,124.52,11.2554946]
[1764621358962,0.2,124.57,124.52,31.33259064]
[1764621359673,0.2,124.57,124.53,3.22465619]
[1764621359995,0.2,124.57,124.54,8.02954873]
[1764621360375,0.2,124.57,124.54,11.25420492]
[1764621360885,0.2,124.57,124.54,8.02954873]
[1764621361282,0.2,124.57,124.54,31.32807676]
[1764621361580,0.2,124.57,124.55,3.22465619]
[1764621361759,0.2,124.57,124.54,28.10342057]
[1764621361961,0.2,124.57,124.54,31.32807676]
[1764621362364,0.2,124.57,124.56,8.02825947]
[1764621363274,0.2,124.57,124.54,31.32755794]
[1764621363473,3.22465619,124.56,124.54,8.02902991]
[1764621363971,11.45247591,124.57,124.54,8.02902991]
[1764621364671,3.22465619,124.56,124.52,8.03062765]
[1764621364878,3.22465619,124.55,124.52,8.03062765]
[1764621365569,3.22465619,124.55,124.5,8.031493]
[1764621365570,3.22465619,124.53,124.5,8.031493]
[1764621365789,12.12465619,124.52,124.48,8.03290352]
[1764621367084,20.15570404,124.52,124.48,8.03290352]
[1764621367386,20.07464423,124.54,124.5,3.22465619]
[1764621367387,16.92954873,124.54,124.5,3.22465619]
[1764621367892,16.92954873,124.54,124.48,28.11645107]
[1764621367893,20.15420492,124.54,124.49,3.22465619]
[1764621368566,20.15420492,124.54,124.5,3.22465619]
[1764621369204,20.15420492,124.54,124.5,11.25624477]
[1764621370196,20.15420492,124.54,124.5,8.03158858]
[1764621370415,20.15420492,124.54,124.5,11.25624477]
[1764621373074,8.9,124.54,124.5,11.25624477]
[1764621373287,8.9,124.54,124.51,3.22465619]
[1764621373875,20.15422995,124.54,124.49,8.03248023]
[1764621374074,3.22465619,124.53,124.49,8.03248023]
[1764621374394,16.92957376,124.54,124.46,36.39454526]
[1764621374395,3.22465619,124.52,124.46,36.39454526]
[1764621374579,8.92,124.51,124.47,3.22465619]
[1764621375382,8.92,124.51,124.47,11.25872062]
[1764621375891,8.92,124.51,124.47,3.22465619]
[1764621376276,8.92,124.51,124.45,3.22465619]
[1764621376277,3.22465619,124.5,124.45,3.22465619]
[1764621376474,3.22465619,124.48,124.43,3.22465619]
[1764621376697,12.14465619,124.48,124.44,3.22465619]
[1764621377297,8.03406443,124.47,124.43,11.26099994]
[1764621377995,3.22465619,124.47,124.42,33.26580022]
[1764621378306,3.22465619,124.47,124.42,3.22465619]
[1764621378598,3.22465619,124.45,124.4,3.22465619]
[1764621378775,8.92,124.44,124.4,3.22465619]
[1764621379301,16.95601479,124.44,124.4,3.22465619]
[1764621379594,3.22465619,124.43,124.39,0.1]
[1764621379839,12.14465619,124.44,124.39,11.36370451]
[1764621380095,33.26367813,124.46,124.42,3.22465619]
[1764621380408,33.26367813,124.46,124.42,5.04522511]
[1764621380587,38.30890324,124.46,124.42,5.04522511]
[1764621380894,33.26367813,124.46,124.42,13.0820748]
[1764621381098,38.30890324,124.46,124.42,8.03684969]
[1764621381796,33.26367813,124.46,124.42,13.0820748]
[1764621382002,16.95481413,124.46,124.42,8.03684969]
[1764621382202,16.95481413,124.46,124.42,13.0820748]
[1764621382498,8.92,124.46,124.42,8.03684969]
[1764621382701,8.92,124.46,124.43,5.04522511]
[1764621382884,22.00003062,124.46,124.42,8.03684969]
[1764621383617,33.26163976,124.49,124.45,5.04522511]
[1764621383787,38.30686487,124.49,124.45,5.04522511]
[1764621383987,38.30686487,124.49,124.44,5.04522511]
[1764621384181,38.30686487,124.49,124.45,5.04522511]
[1764621384379,150.14216157,124.51,124.47,5.04522511]
[1764621384380,8.03212512,124.51,124.47,5.04522511]
[1764621384583,16.95212512,124.51,124.47,5.04522511]
[1764621384890,16.95212512,124.51,124.48,5.04522511]
[1764621385896,8.92,124.51,124.48,13.07851521]
[1764621386300,8.92,124.51,124.49,5.04522511]
[1764621387329,33.25910279,124.53,124.49,5.04522511]
[1764621387494,38.3043279,124.53,124.48,13.07851521]
[1764621388408,33.25910279,124.53,124.49,5.04522511]
[1764621390313,33.25910279,124.53,124.49,13.07746601]
[1764621390608,8.92,124.53,124.5,5.04522511]
[1764621390787,150.2,124.57,124.52,5.04522511]
[1764621390788,0.2,124.57,124.52,5.04522511]
[1764621390989,0.2,124.57,124.55,5.04522511]
[1764621391386,0.2,124.57,124.56,5.04522511]
[1764621392414,0.2,124.57,124.56,22.05036752]
[1764621402427,0.2,124.61,124.57,8.80994492]
[1764621402606,0.2,124.61,124.57,14.02210805]
[1764621403199,0.2,124.61,124.56,36.99890815]
[1764621403424,0.2,124.61,124.58,14.02210805]
[1764621403626,0.2,124.61,124.58,22.04896898]
[1764621406223,0.2,124.61,124.58,42.11639553]
[1764621406434,1e-08,124.61,124.6,16.308864]
[1764621406643,1e-08,124.61,124.6,30.33097205]
[1764621408216,1e-08,124.61,124.6,38.35665423]
[1764621409641,1e-08,124.61,124.6,24.33454618]
[1764621409813,1e-08,124.61,124.6,38.35665423]
[1764621410129,1e-08,124.61,124.6,47.30876072]
[1764621411946,1e-08,124.61,124.6,33.28665267]
[1764621412114,1e-08,124.61,124.6,38.35665423]
[1764621412422,1e-08,124.61,124.6,29.36243166]
[1764621414229,1e-08,124.61,124.6,13.05356766]
[1764621416232,1e-08,124.61,124.6,29.36243166]
[1764621419224,1e-08,124.61,124.6,13.05356766]
[1764621419733,1e-08,124.61,124.59,13.05405879]
[1764621419932,1e-08,124.61,124.58,36.37629055]
[1764621419933,1e-08,124.61,124.58,16.308864]
[1764621420234,21.95294074,124.61,124.57,8.02753377]
[1764621420419,16.92505526,124.61,124.57,8.02753377]
[1764621420614,16.92505526,124.61,124.57,13.05541925]
[1764621421136,1e-08,124.61,124.57,13.05541925]
[1764621421333,1e-08,124.61,124.57,33.12445673]
[1764621421639,1e-08,124.61,124.59,5.02788548]
[1764621421820,1e-08,124.61,124.6,5.02788548]
[1764621422136,1e-08,124.61,124.59,5.02788548]
[1764621422324,1e-08,124.61,124.6,5.02788548]
[1764621423619,1e-08,124.61,124.59,5.02788548]
[1764621423814,1e-08,124.61,124.58,5.02788548]
[1764621424020,1e-08,124.61,124.57,28.09657125]
[1764621424335,1e-08,124.61,124.57,42.11566116]
[1764621425038,1e-08,124.61,124.58,14.01908991]
[1764621425337,8.90000001,124.61,124.58,8.02685387]
[1764621425927,1e-08,124.61,124.59,14.01908991]
[1764621427234,1e-08,124.61,124.6,8.02568218]
[1764621427829,1e-08,124.61,124.6,22.04477209]
[1764621430833,1e-08,124.61,124.6,8.02568218]
[1764621431055,1e-08,124.61,124.6,22.04477209]
[1764621433615,1e-08,124.61,124.58,14.01908991]
[1764621434249,1e-08,124.61,124.6,14.01908991]
[1764621434425,1e-08,124.61,124.59,42.11123213]
[1764621434740,1e-08,124.61,124.59,22.04541626]
[1764621435452,1e-08,124.61,124.58,22.04601864]
[1764621437173,1e-08,124.61,124.57,30.32795391]
[1764621437453,1e-08,124.61,124.56,14.01908991]
[1764621437454,14.01908992,124.61,124.56,14.01908991]
[1764621437634,14.01908992,124.61,124.56,30.32795391]
[1764621438449,8.9,124.6,124.57,8.02761499]
[1764621440046,8.9,124.6,124.56,38.35596902]
[1764621440346,8.9,124.6,124.56,32.16586587]
[1764621442143,8.02508928,124.61,124.56,32.16586587]
[1764621442348,16.92508928,124.61,124.56,32.16586587]
[1764621442951,1e-08,124.61,124.56,32.16586587]
[1764621443150,8.4208113,124.61,124.56,32.16586587]
[1764621443951,7.82898676,124.59,124.56,8.02801511]
[1764621444329,7.82898676,124.59,124.54,8.02954873]
[1764621444535,3.22259701,124.59,124.54,8.02954873]
[1764621446357,3.22259701,124.59,124.54,11.25214574]
[1764621447151,3.22259701,124.58,124.54,8.02954873]
[1764621447379,11.24900754,124.59,124.54,8.02954873]
[1764621447861,3.22259701,124.58,124.54,8.02954873]
[1764621448354,11.24963226,124.58,124.54,8.02954873]
[1764621448557,8.02703525,124.58,124.54,8.02954873]
[1764621448857,8.9,124.58,124.55,3.22259701]
[1764621449159,8.9,124.58,124.54,11.25214574]
[1764621450262,8.9,124.58,124.54,31.32601758]
[1764621450461,12.12259701,124.58,124.53,19.53146101]
[1764621450664,20.14979157,124.58,124.53,19.53146101]
[1764621450965,20.14979157,124.58,124.53,16.308864]
[1764621451563,16.92719456,124.58,124.53,19.53146101]
[1764621451942,3.22259701,124.57,124.53,16.308864]
[1764621452158,3.22259701,124.56,124.5,3.22259701]
[1764621452342,3.22259701,124.55,124.49,23.30413521]
[1764621452543,8.9,124.54,124.5,16.308864]
[1764621453469,8.9,124.54,124.5,27.56311319]
[1764621454462,3.22259701,124.56,124.5,24.34051618]
[1764621454649,8.9,124.55,124.5,27.56311319]
[1764621455265,16.92891162,124.55,124.5,27.56311319]
[1764621456247,8.02891162,124.55,124.5,27.56311319]
[1764621456448,16.92891162,124.55,124.5,27.56311319]
[1764621456969,20.15150863,124.55,124.5,19.53146101]
[1764621457146,8.80994492,124.57,124.51,3.22259701]
[1764621457346,20.15085648,124.56,124.51,3.22259701]
[1764621457843,20.15085648,124.56,124.5,47.64382534]
[1764621459255,16.83627127,124.59,124.53,3.22259701]
[1764621459454,12.12259701,124.58,124.53,3.22259701]
[1764621459857,12.12259701,124.58,124.52,3.22259701]
[1764621460176,3.22259701,124.57,124.52,3.22259701]
[1764621460371,8.9,124.58,124.52,3.22259701]
[1764621460575,0.14216157,124.61,124.57,3.22259701]
[1764621460576,8.02503811,124.61,124.57,3.22259701]
[1764621460876,0.2,124.62,124.59,3.22259701]
[1764621461173,0.2,124.62,124.6,8.02568218]
[1764621461671,0.2,124.62,124.6,11.24827919]
[1764621462412,0.2,124.62,124.59,8.02630222]
[1764621462755,0.2,124.62,124.59,11.24889923]
[1764621465160,0.2,124.62,124.61,28.34140593]
[1764621465370,0.2,124.62,124.61,28.4835675]
[1764621466183,0.2,124.62,124.61,31.70616451]
[1764621466970,0.2,124.62,124.61,39.73120262]
[1764621467782,0.2,124.63,124.62,0.14216157]
[1764621467972,0.2,124.68,124.62,0.14216157]
[1764621467973,0.2,124.68,124.65,16.308864]
[1764621468180,0.2,124.68,124.67,3.22259701]
[1764621468378,0.2,124.68,124.67,7.8145974]
[1764621469074,0.2,124.68,124.67,15.8357733]
[1764621470175,0.2,124.68,124.67,24.7357733]
[1764621471187,0.2,124.68,124.67,16.9211759]
[1764621471386,0.2,124.68,124.67,24.7357733]
[1764621473484,0.2,124.68,124.67,8.9]
[1764621473783,0.2,124.68,124.67,24.7357733]
[1764621474905,0.2,124.68,124.67,73.22140909]
[1764621475080,0.2,124.69,124.68,16.62454232]
[1764621475262,0.2,124.69,124.68,24.64507488]
[1764621479267,0.2,124.69,124.68,16.308864]
[1764621480410,0.2,124.69,124.66,8.02166604]
[1764621481186,0.2,124.69,124.66,35.89081181]
[1764621481979,0.2,124.69,124.67,7.8145974]
[1764621482879,0.2,124.69,124.68,24.1234614]
[1764621483409,0.2,124.69,124.68,33.16562297]
[1764621483698,0.2,124.69,124.68,41.97556789]
[1764621483873,0.2,124.69,124.68,49.99610045]
[1764621484071,0.2,124.69,124.68,33.22939656]
[1764621484385,0.2,124.69,124.68,41.04399396]
[1764621486493,0.2,124.69,124.68,49.99610045]
[1764621486878,1e-08,124.69,124.68,49.99610045]
[1764621487190,0.2,124.71,124.69,8.95210649]
[1764621487372,0.2,124.71,124.7,16.85675897]
[1764621488270,0.2,124.71,124.7,24.87600516]
[1764621488473,0.2,124.71,124.7,20.27341379]
[1764621490494,0.2,124.71,124.7,24.86837506]
[1764621491582,0.2,124.71,124.7,33.67831998]
[1764621492497,0.2,124.71,124.7,37.69322503]
[1764621492797,0.2,124.71,124.7,34.48024459]
[1764621493897,0.2,124.74,124.71,0.14216157]
[1764621494112,0.2,124.79,124.75,8.80994492]
[1764621494291,0.2,124.79,124.78,35.06793778]
[1764621494292,1e-08,124.79,124.78,35.06793778]
[1764621494491,0.2,124.8,124.79,0.14216157]
[1764621494492,1e-08,124.8,124.79,0.14216157]
[1764621494791,1e-08,124.82,124.81,0.14216157]
[1764621495006,0.2,124.85,124.84,16.308864]
[1764621495201,0.2,124.85,124.84,41.96793779]
[1764621495502,0.2,124.9,124.85,16.45102557]
[1764621495805,0.2,124.9,124.85,16.308864]
[1764621495806,8.0069673,124.9,124.85,16.308864]
[1764621495996,16.01341117,124.9,124.85,16.308864]
[1764621496196,8.0069673,124.9,124.84,8.9]
[1764621496509,16.01355792,124.9,124.84,24.71672048]
[1764621497007,8.0077018,124.88,124.85,16.308864]
[1764621497389,15.81419289,124.89,124.85,16.308864]
[1764621497580,8.00722559,124.89,124.85,16.308864]
[1764621498190,8.0069673,124.9,124.85,16.308864]
[1764621498389,15.81442267,124.89,124.85,16.308864]
[1764621498987,0.2,124.9,124.85,16.308864]
[1764621499191,0.2,124.9,124.85,24.31847553]
[1764621499399,15.81441478,124.89,124.84,8.9]
[1764621500403,8.00744748,124.89,124.84,16.90995655]
[1764621500613,0.2,124.9,124.85,7.8069673]
[1764621501388,0.2,124.9,124.85,7.94912887]
[1764621501806,0.2,124.9,124.85,15.9587404]
[1764621502496,0.2,124.9,124.85,38.41290195]
[1764621503522,0.2,124.9,124.85,62.98264963]
[1764621504415,0.2,124.9,124.85,55.48373055]
[1764621504900,0.2,124.9,124.85,58.69284443]
[1764621505898,0.2,124.9,124.85,55.48373055]
[1764621506807,0.2,124.9,124.85,46.67378563]
[1764621509398,0.2,124.9,124.85,32.72152078]
[1764621509603,0.2,124.9,124.85,46.67378563]
[1764621514116,0.2,124.9,124.88,16.308864]
[1764621514318,0.2,124.9,124.89,21.95931105]
[1764621514917,0.2,124.9,124.88,39.14112885]
[1764621515114,13.95226485,124.89,124.81,28.83934925]
[1764621515420,13.95226485,124.89,124.82,9.02216157]
[1764621515803,13.95226485,124.89,124.84,16.308864]
[1764621516211,21.95958163,124.89,124.84,24.31884834]
[1764621516827,13.95226485,124.88,124.83,8.01060174]
[1764621517026,13.95226485,124.87,124.82,8.88]